lending/lending_fUSD_20251107
["ID","MTS","AMOUNT","RATE_DAILY","PERIOD"]
[393335104,1762487446110,-722.9,0.00038459,30]
[393335105,1762487446120,-150.0,0.00038459,7]
[393335106,1762487446129,-2000.0,0.00038473,2]
[393335107,1762487446139,-150.0,0.00038483,7]
[393335108,1762487446151,-300.0,0.00038486,2]
[393335109,1762487446161,-300.0,0.00038496,2]
[393335110,1762487446171,-151.0,0.000385,7]
[393335111,1762487446181,-3848.18,0.000385,120]
[393335112,1762487446191,-769.545172,0.000385,27]
[393335113,1762487446200,-13147.76,0.000385,14]
[393335114,1762487446210,-1500.0,0.000385,27]
[393335115,1762487446219,-200.0,0.000385,14]
[393335116,1762487446228,-1000.0,0.00038509,7]
[393335117,1762487446238,-300.0,0.00038515,2]
[393335118,1762487446248,-500.0,0.00038518,7]
[393335119,1762487446263,-1000.0,0.00038519,7]
[393335120,1762487446273,-1000.0,0.00038523,7]
[393335121,1762487446282,-152.4823511,0.00038525,7]
[393335122,1762487446291,-1000.0,0.00038529,7]
[393335123,1762487446301,-300.0,0.00038541,2]
[393335124,1762487446311,-225.0,0.00038544,2]
[393335125,1762487446320,-300.0,0.00038546,2]
[393335126,1762487446329,-239.25707531,0.0003855,4]
[393335127,1762487446339,-203.79986204,0.00038553,120]
[393335128,1762487446348,-205.11101068,0.00038553,120]
[393335129,1762487446358,-1000.0,0.00038559,7]
[393335130,1762487446367,-151.0,0.00038561,14]
[393335131,1762487446377,-300.0,0.00038567,2]
[393335132,1762487446386,-1000.0,0.00038571,7]
[393335133,1762487446396,-300.0,0.00038578,2]
[393335134,1762487446406,-2733.10488,0.0003858,2]
[393335135,1762487446416,-1000.0,0.00038582,7]
[393335136,1762487446425,-150.0,0.00038591,7]
[393335137,1762487446435,-283.75273937,0.00038597,7]
[393335138,1762487446445,-200.0,0.000386,14]
[393335139,1762487446455,-1000.0,0.00038601,7]
[393335140,1762487446465,-300.0,0.00038605,2]
[393335141,1762487446475,-150.0,0.00038616,7]
[393335142,1762487446485,-151.97898848,0.00038626,7]
[393335143,1762487446495,-199.0,0.0003863,11]
[393335144,1762487446504,-9949.81577771,0.00038633,2]
[393335145,1762487446514,-167.4277544,0.00038633,120]
[393335146,1762487446523,-180.48887922,0.00038633,2]
[393335147,1762487446533,-167.83404792,0.00038633,120]
[393335148,1762487446544,-167.83,0.00038633,120]
[393335149,1762487446555,-176.48,0.00038633,120]
[393335150,1762487446564,-269.18039782,0.00038633,120]
[393335151,1762487446574,-269.18039782,0.00038633,120]
[393335152,1762487446583,-269.18039782,0.00038633,120]
[393335153,1762487446593,-269.18039782,0.00038633,120]
[393335154,1762487446603,-269.18039782,0.00038633,120]
[393335155,1762487446612,-269.18039782,0.00038633,120]
[393335156,1762487446622,-269.18039782,0.00038633,120]
[393335157,1762487446631,-269.18039782,0.00038633,120]
[393335158,1762487446641,-269.18039782,0.00038633,120]
[393335159,1762487446652,-269.18039782,0.00038633,120]
[393335160,1762487446661,-269.18039782,0.00038633,120]
[393335161,1762487446671,-269.18039782,0.00038633,120]
[393335162,1762487446680,-269.18039782,0.00038633,120]
[393335163,1762487446689,-269.18039782,0.00038633,120]
[393335164,1762487446698,-269.18039782,0.00038633,120]
[393335165,1762487446707,-269.18039782,0.00038633,120]
[393335166,1762487446716,-269.18039782,0.00038633,120]
[393335167,1762487446726,-269.18039782,0.00038633,120]
[393335168,1762487446735,-269.18039782,0.00038633,120]
[393335169,1762487446744,-269.18,0.00038633,120]
[393335170,1762487446753,-628.08759491,0.00038633,120]
[393335171,1762487446762,-628.08759491,0.00038633,120]
[393335172,1762487446772,-628.08759491,0.00038633,120]
[393335173,1762487446782,-628.08759491,0.00038633,120]
[393335174,1762487446791,-628.08759491,0.00038633,120]
[393335175,1762487446801,-628.08759491,0.00038633,120]
[393335176,1762487446811,-628.08759491,0.00038633,120]
[393335177,1762487446820,-628.08759491,0.00038633,120]
[393335178,1762487446830,-628.08759491,0.00038633,120]
[393335179,1762487446839,-628.08759491,0.00038633,120]
[393335180,1762487446849,-628.08759491,0.00038633,120]
[393335181,1762487446859,-628.08759491,0.00038633,120]
[393335182,1762487446868,-628.08759491,0.00038633,120]
[393335183,1762487446878,-628.08759491,0.00038633,120]
[393335184,1762487446887,-628.08759491,0.00038633,120]
[393335185,1762487446896,-628.08759491,0.00038633,120]
[393335186,1762487446905,-628.08759491,0.00038633,120]
[393335187,1762487446915,-628.08759491,0.00038633,120]
[393335188,1762487446924,-628.08759491,0.00038633,120]
[393335189,1762487446933,-628.08,0.00038633,120]
[393335190,1762487446943,-300.0,0.00038634,2]
[393335191,1762487446952,-180.48887921,0.00038641,2]
[393335192,1762487446961,-166.30259322,0.00038644,15]
[393335193,1762487446970,-226.0,0.00038646,2]
[393335194,1762487446979,-317.0,0.00038646,2]
[393335195,1762487446989,-181.0,0.00038646,14]
[393335196,1762487446998,-183.19180711,0.00038646,7]
[393335197,1762487447008,-300.0,0.00038648,2]
[393335198,1762487447017,-180.48887921,0.00038649,2]
[393335199,1762487447026,-150.0,0.0003865,7]
[393335200,1762487447035,-17044.0,0.00038658,120]
[393335201,1762487447045,-1000.0,0.0003866,7]
[393335202,1762487447054,-1000.0,0.00038669,7]
[393335203,1762487447063,-150.0,0.00038669,7]
[393335204,1762487447072,-156.78451654,0.00038678,60]
[393335205,1762487447082,-582.44605535,0.00038678,60]
[393335206,1762487447092,-336.81066163,0.00038678,60]
[393335207,1762487447101,-607.0,0.0003868,2]
[393335208,1762487447115,-1316.0,0.0003868,2]
[393335209,1762487447125,-574.0,0.0003868,2]
[393335210,1762487447134,-1596.0,0.0003868,2]
[393335211,1762487447144,-820.0,0.0003868,2]
[393335212,1762487447154,-905.0,0.0003868,2]
[393335213,1762487447164,-1188.0,0.0003868,2]
[393335214,1762487447174,-812.0,0.0003868,2]
[393335215,1762487447186,-1273.0,0.0003868,2]
[393335216,1762487447195,-6659.0,0.0003868,2]
[393335217,1762487447205,-2142.0,0.0003868,2]
[393335218,1762487447214,-6476.0,0.0003868,2]
[393335219,1762487447223,-175.48706705,0.00038685,120]
[393335220,1762487447232,-500.0,0.00038685,30]
[393335221,1762487447242,-200.0,0.00038686,2]
[393335222,1762487447252,-155.0,0.00038686,30]
[393335223,1762487447262,-155.07611425,0.00038686,30]
[393335224,1762487447271,-155.37333694,0.00038686,30]
[393335225,1762487447280,-151.0,0.00038686,30]
[393335226,1762487447289,-151.0,0.00038686,30]
[393335227,1762487447299,-826.0,0.00038686,30]
[393335228,1762487447308,-151.0,0.00038686,30]
[393335229,1762487447318,-151.0,0.00038686,30]
[393335230,1762487447328,-151.0,0.00038686,30]
[393335231,1762487447338,-151.0,0.00038686,30]
[393335232,1762487447348,-151.0,0.00038686,30]
[393335233,1762487447357,-151.0,0.00038686,30]
[393335234,1762487447366,-151.0,0.00038686,30]
[393335235,1762487447375,-151.0,0.00038686,30]
[393335236,1762487447385,-151.0,0.00038686,30]
[393335237,1762487447395,-151.0,0.00038686,30]
[393335238,1762487447404,-151.0,0.00038686,30]
[393335239,1762487447414,-151.0,0.00038686,30]
[393335240,1762487447423,-151.0,0.00038686,30]
[393335241,1762487447433,-151.0,0.00038686,30]
[393335242,1762487447442,-151.0,0.00038686,30]
[393335243,1762487447452,-151.0,0.00038686,30]
[393335244,1762487447461,-151.0,0.00038686,30]
[393335245,1762487447471,-151.0,0.00038686,30]
[393335246,1762487447480,-151.0,0.00038686,30]
[393335247,1762487447491,-151.0,0.00038686,30]
[393335248,1762487447500,-151.0,0.00038686,30]
[393335249,1762487447511,-151.0,0.00038686,30]
[393335250,1762487447521,-151.0,0.00038686,30]
[393335251,1762487447530,-151.0,0.00038686,30]
[393335252,1762487447540,-151.0,0.00038686,30]
[393335253,1762487447550,-151.0,0.00038686,30]
[393335254,1762487447561,-151.0,0.00038686,30]
[393335255,1762487447571,-151.0,0.00038686,30]
[393335256,1762487447581,-151.0,0.00038686,30]
[393335257,1762487447591,-151.0,0.00038686,30]
[393335258,1762487447600,-151.0,0.00038686,30]
[393335259,1762487447609,-151.0,0.00038686,30]
[393335260,1762487447619,-151.0,0.00038686,30]
[393335261,1762487447628,-151.0,0.00038686,30]
[393335262,1762487447637,-151.0,0.00038686,30]
[393335263,1762487447648,-151.0,0.00038686,30]
[393335264,1762487447657,-151.0,0.00038686,30]
[393335265,1762487447667,-151.0,0.00038686,30]
[393335266,1762487447679,-151.0,0.00038686,30]
[393335267,1762487447689,-156.68814823,0.00038686,30]
[393335268,1762487447699,-1000.0,0.00038689,7]
[393335269,1762487447708,-152.4930528,0.00038689,7]
[393335270,1762487447718,-723.20727316,0.00038691,30]
[393335271,1762487447730,-1531.88660826,0.00038691,30]
[393335272,1762487447740,-3151.14817034,0.00038691,30]
[393335273,1762487447750,-1000.0,0.00038692,7]
[393335274,1762487447759,-1000.0,0.00038692,7]
[393335275,1762487447768,-300.0,0.000387,17]
[393335276,1762487447778,-201.75668363,0.000387,120]
[393335277,1762487447787,-184.81221801,0.000387,120]
[393335278,1762487447796,-1376.34017888,0.000387,120]
[393335279,1762487447805,-185.06951884,0.000387,120]
[393335280,1762487447814,-169.40800456,0.000387,120]
[393335281,1762487447823,-268.67349644,0.000387,120]
[393335282,1762487447832,-1889.72474743,0.000387,120]
[393335283,1762487447841,-751.3644216,0.000387,120]
[393335284,1762487447851,-603.48826267,0.000387,30]
[393335285,1762487447860,-1500.0,0.000387,30]
[393335286,1762487447870,-1500.0,0.000387,30]
[393335287,1762487447879,-1500.0,0.000387,30]
[393335288,1762487447888,-1500.0,0.000387,30]
[393335289,1762487447898,-1500.0,0.000387,30]
[393335290,1762487447908,-1500.0,0.000387,30]
[393335291,1762487447917,-1500.0,0.000387,30]
[393335292,1762487447927,-500.7159673,0.000387,120]
[393335293,1762487447936,-1500.0,0.000387,30]
[393335294,1762487447945,-1500.0,0.000387,30]
[393335295,1762487447954,-1500.0,0.000387,30]
[393335296,1762487447964,-196.9097,0.000387,30]
[393335297,1762487447974,-243371.813796,0.000387,30]
[393335298,1762487447983,-50814.88079094,0.000387,30]
[393335299,1762487447992,-3490.14942642,0.000387,2]
[393335300,1762487448002,-1004.0,0.000387,7]
[393335301,1762487448011,-200.0,0.000387,14]
[393335302,1762487448020,-174.31415009,0.00038702,2]
[393335303,1762487448030,-311.0,0.00038702,120]
[393335304,1762487448040,-184.6665,0.00038704,2]
[393335305,1762487448049,-1065.12680654,0.00038705,120]
[393335306,1762487448059,-184.7175,0.00038705,2]
[393335307,1762487448068,-150.0,0.00038707,7]
[393335308,1762487448077,-150.0,0.00038708,7]
[393335309,1762487448087,-219.88,0.00038711,30]
[393335310,1762487448096,-448.83,0.00038711,30]
[393335311,1762487448110,-502.67597498,0.00038718,30]
[393335312,1762487448120,-300.0,0.00038718,2]
[393335313,1762487448129,-183.0,0.00038721,30]
[393335314,1762487448138,-525.5272976,0.00038723,2]
[393335315,1762487448149,-500.0,0.00038726,30]
[393335316,1762487448159,-152.65400145,0.0003873,30]
[393335317,1762487448169,-500.0,0.0003873,30]
[393335318,1762487448319,-503.84257315,0.0003873,30]
[393335319,1762487448328,-161.28953375,0.0003873,14]
[393335320,1762487448338,-500.0,0.00038732,7]
[393335321,1762487448348,-500.0,0.00038732,7]
[393335322,1762487448358,-175.27,0.00038732,7]
[393335323,1762487448368,-300.0,0.00038732,10]
[393335324,1762487448377,-300.0,0.00038732,10]
[393335325,1762487448386,-300.0,0.00038732,10]
[393335326,1762487448395,-722.9,0.00038733,30]
[393335327,1762487448405,-722.9,0.00038733,30]
[393335328,1762487448415,-445.0,0.00038733,120]
[393335329,1762487448424,-152.0,0.00038733,120]
[393335330,1762487448434,-1391.75150663,0.00038733,120]
[393335331,1762487448443,-152.0,0.00038733,120]
[393335332,1762487448452,-152.0,0.00038733,120]
[393335333,1762487448462,-240.31495822,0.00038733,120]
[393335334,1762487448471,-151.0,0.00038733,120]
[393335335,1762487448480,-151.0,0.00038733,120]
[393335336,1762487448490,-184.83840441,0.00038733,120]
[393335337,1762487448499,-425.04503646,0.00038733,120]
[393335338,1762487448508,-162.62384,0.00038733,120]
[393335339,1762487448518,-151.0,0.00038733,30]
[393335340,1762487448527,-151.0,0.00038733,120]
[393335341,1762487448536,-151.0,0.00038733,120]
[393335342,1762487448545,-151.0,0.00038733,120]
[393335343,1762487448554,-151.0,0.00038733,120]
[393335344,1762487448563,-151.0,0.00038733,120]
[393335345,1762487448572,-151.0,0.00038733,120]
[393335346,1762487448582,-151.0,0.00038733,120]
[393335347,1762487448591,-151.0,0.00038733,120]
[393335348,1762487448600,-151.0,0.00038733,120]
[393335349,1762487448610,-151.0,0.00038733,120]
[393335350,1762487448619,-170.812782,0.00038733,120]
[393335351,1762487448628,-154.853143,0.00038733,120]
[393335352,1762487448638,-151.0,0.00038733,120]
[393335353,1762487448647,-152.751498,0.00038733,120]
[393335354,1762487448656,-151.0,0.00038733,120]
[393335355,1762487448667,-212.890596,0.00038733,120]
[393335356,1762487448676,-151.000008,0.00038733,120]
[393335357,1762487448685,-154.619845,0.00038733,120]
[393335358,1762487448694,-171.130794,0.00038733,120]
[393335359,1762487448703,-151.0,0.00038733,120]
[393335360,1762487448712,-162.809785,0.00038733,120]
[393335361,1762487448721,-162.809785,0.00038733,120]
[393335362,1762487448730,-162.809785,0.00038733,120]
[393335363,1762487448739,-151.0,0.00038733,120]
[393335364,1762487448748,-162.809785,0.00038733,120]
[393335365,1762487448758,-162.809785,0.00038733,120]
[393335366,1762487448767,-162.809785,0.00038733,120]
[393335367,1762487448776,-162.809785,0.00038733,120]
[393335368,1762487448785,-162.809785,0.00038733,120]
[393335369,1762487448795,-162.809785,0.00038733,120]
[393335370,1762487448804,-162.809785,0.00038733,120]
[393335371,1762487448813,-162.809785,0.00038733,120]
[393335372,1762487448823,-151.0,0.00038733,120]
[393335373,1762487448832,-162.809785,0.00038733,120]
[393335374,1762487448842,-151.0,0.00038733,120]
[393335375,1762487448851,-151.0,0.00038733,120]
[393335376,1762487448861,-151.0,0.00038733,120]
[393335377,1762487448870,-180.714932,0.00038733,120]
[393335378,1762487448879,-151.0,0.00038733,120]
[393335379,1762487448889,-151.0,0.00038733,120]
[393335380,1762487448898,-296.415688,0.00038733,120]
[393335381,1762487448907,-151.0,0.00038733,120]
[393335382,1762487448917,-151.0,0.00038733,120]
[393335383,1762487448926,-272.862992,0.00038733,120]
[393335384,1762487448935,-151.0,0.00038733,120]
[393335385,1762487448944,-151.0,0.00038733,120]
[393335386,1762487448953,-151.0,0.00038733,100]
[393335387,1762487448962,-170.037551,0.00038733,100]
[393335388,1762487448971,-151.0,0.00038733,120]
[393335389,1762487448980,-151.0,0.00038733,120]
[393335390,1762487448990,-209.475628,0.00038733,120]
[393335391,1762487448999,-326.028173,0.00038733,120]
[393335392,1762487449008,-326.028173,0.00038733,120]
[393335393,1762487449016,-326.028173,0.00038733,120]
[393335394,1762487449026,-326.028173,0.00038733,120]
[393335395,1762487449035,-151.0,0.00038733,120]
[393335396,1762487449044,-326.028173,0.00038733,120]
[393335397,1762487449053,-156.697005,0.00038733,120]
[393335398,1762487449062,-326.028173,0.00038733,120]
[393335399,1762487449071,-326.028173,0.00038733,120]
[393335400,1762487449080,-326.028173,0.00038733,120]
[393335401,1762487449089,-326.028173,0.00038733,120]
[393335402,1762487449098,-151.0,0.00038733,120]
[393335403,1762487449111,-151.0,0.00038733,120]
[393335404,1762487449120,-151.0,0.00038733,120]
[393335405,1762487449129,-326.028173,0.00038733,120]
[393335406,1762487449139,-326.028173,0.00038733,120]
[393335407,1762487449150,-326.028173,0.00038733,120]
[393335408,1762487449159,-188.461222,0.00038733,120]
[393335409,1762487449168,-151.0,0.00038733,120]
[393335410,1762487449178,-151.0,0.00038733,120]
[393335411,1762487449190,-158.628141,0.00038733,120]
[393335412,1762487449199,-151.0,0.00038733,120]
[393335413,1762487449210,-151.0,0.00038733,120]
[393335414,1762487449219,-224.81491,0.00038733,120]
[393335415,1762487449229,-151.0,0.00038733,120]
[393335416,1762487449238,-151.0,0.00038733,120]
[393335417,1762487449247,-151.0,0.00038733,120]
[393335418,1762487449258,-278.855926,0.00038733,120]
[393335419,1762487449267,-151.0,0.00038733,120]
[393335420,1762487449277,-151.0,0.00038733,120]
[393335421,1762487449286,-151.0,0.00038733,120]
[393335422,1762487449295,-151.0,0.00038733,120]
[393335423,1762487449304,-151.0,0.00038733,120]
[393335424,1762487449314,-151.0,0.00038733,120]
[393335425,1762487449323,-151.0,0.00038733,120]
[393335426,1762487449333,-151.0,0.00038733,120]
[393335427,1762487449342,-151.0,0.00038733,120]
[393335428,1762487449351,-156.582746,0.00038733,120]
[393335429,1762487449360,-151.0,0.00038733,120]
[393335430,1762487449369,-151.0,0.00038733,120]
[393335431,1762487449379,-151.0,0.00038733,120]
[393335432,1762487449387,-151.0,0.00038733,120]
[393335433,1762487449397,-151.0,0.00038733,120]
[393335434,1762487449406,-151.0,0.00038733,120]
[393335435,1762487449416,-151.0,0.00038733,120]
[393335436,1762487449425,-151.0,0.00038733,120]
[393335437,1762487449434,-151.0,0.00038733,120]
[393335438,1762487449444,-151.0,0.00038733,120]
[393335439,1762487449453,-151.0,0.00038733,120]
[393335440,1762487449462,-151.0,0.00038733,120]
[393335441,1762487449471,-250.462404,0.00038733,120]
[393335442,1762487449480,-151.0,0.00038733,60]
[393335443,1762487449491,-151.0,0.00038733,120]
[393335444,1762487449500,-153.823368,0.00038733,60]
[393335445,1762487449509,-151.0,0.00038733,120]
[393335446,1762487449519,-151.0,0.00038733,120]
[393335447,1762487449530,-151.0,0.00038733,120]
[393335448,1762487449539,-151.0,0.00038733,120]
[393335449,1762487449548,-151.0,0.00038733,120]
[393335450,1762487449557,-295.47469,0.00038733,120]
[393335451,1762487449567,-653.201617,0.00038733,120]
[393335452,1762487449576,-151.0,0.00038733,120]
[393335453,1762487449585,-653.201617,0.00038733,120]
[393335454,1762487449595,-653.201617,0.00038733,120]
[393335455,1762487449606,-653.201617,0.00038733,120]
[393335456,1762487449616,-653.201617,0.00038733,120]
[393335457,1762487449625,-653.201617,0.00038733,120]
[393335458,1762487449635,-151.0,0.00038733,120]
[393335459,1762487449645,-151.0,0.00038733,120]
[393335460,1762487449655,-653.201617,0.00038733,120]
[393335461,1762487449663,-151.0,0.00038733,120]
[393335462,1762487449673,-653.201617,0.00038733,120]
[393335463,1762487449683,-151.0,0.00038733,120]
[393335464,1762487449692,-653.201617,0.00038733,120]
[393335465,1762487449701,-204.943648,0.00038733,120]
[393335466,1762487449710,-653.201617,0.00038733,120]
[393335467,1762487449720,-653.201617,0.00038733,120]
[393335468,1762487449729,-653.201617,0.00038733,120]
[393335469,1762487449738,-1206419.84656233,0.00038733,30]
[393335470,1762487449936,-559.0,0.0002068,2]
[393335471,1762487449946,-559.0,0.0002368,2]
[393335472,1762487449955,-1000.0,0.00036738,7]
[393335473,1762487449965,-10116.71229981,0.00038633,2]
[393335474,1762487449974,-375.108345,0.00038733,30]
[393335475,1762487449983,-375.108345,0.00038733,30]
[393335476,1762487449993,-375.108345,0.00038733,30]
[393335477,1762487450004,-1426857.7886697,0.00038733,30]
[393335478,1762487450015,-2390452.86092426,0.00038733,30]
[393335479,1762487450026,-795.84,0.00038733,30]
[393335480,1762487450128,-242028.93430777,0.00038733,30]
[393335481,1762487450137,-1910442.63165717,0.00038733,30]
[393335482,1762487450223,-495.37459953,0.00018356,2]
[393335483,1762487450235,-400.0,0.00018356,2]
[393335484,1762487450250,-86696.08540047,0.00018356,2]
[393335485,1762487450259,-1471.6,0.00019375,2]
[393335486,1762487450268,-559.0,0.0002668,2]
[393335487,1762487450280,-559.0,0.0002968,2]
[393335488,1762487450308,-559.0,0.0003268,2]
[393335489,1762487450316,-559.0,0.0003568,2]
[393335490,1762487450327,-559.0,0.0003868,2]
[393335491,1762487450337,-375.108345,0.00038733,30]
[393335492,1762487450346,-375.108345,0.00038733,30]
[393335493,1762487450355,-375.108345,0.00038733,30]
[393335494,1762487450365,-375.108345,0.00038733,30]
[393335495,1762487450376,-375.108345,0.00038733,30]
[393335496,1762487450386,-375.108345,0.00038733,30]
[393335497,1762487450395,-17790.22146368,0.00038733,30]
[393335498,1762487450407,-608.052521,0.00038733,30]
[393335499,1762487450724,-500.0,0.00016271,2]
[393335500,1762487450733,-108.21731146,0.00016271,2]
[393335501,1762487450744,-391.78268854,0.00016271,2]
[393335502,1762487450754,-500.0,0.00016271,2]
[393335503,1762487450763,-500.0,0.00032877,7]
[393335504,1762487450772,-500.0,0.00032877,7]
[393335505,1762487450781,-500.0,0.00032877,7]
[393335506,1762487450790,-500.0,0.00032877,7]
[393335507,1762487450799,-500.0,0.00032877,7]
[393335508,1762487450807,-297.53626257,0.00032877,7]
[393335509,1762487450819,-202.46373743,0.00032877,7]
[393335510,1762487450828,-500.0,0.00032877,7]
[393335511,1762487450837,-389.93626257,0.00032877,7]
[393335512,1762487521475,300.0,0.00017498,2]
[393335513,1762487542002,8599.94842349,0.00017399,2]
[393335514,1762487547739,282.32318957,0.00016271,2]
[393335515,1762487561682,158.0,0.00017498,2]
[393335517,1762487581644,300.0,0.00017498,2]
[393335519,1762487907813,-1200.0,0.00017398,2]
[393335520,1762487907843,-300.0,0.00017398,2]
[393335521,1762487910660,-914.81149331,0.00017399,2]
[393335522,1762487913707,-1829.62298662,0.00017399,2]
[393335523,1762487916694,-3659.24597324,0.00017399,2]
[393335524,1762487922747,-2681.51805352,0.00017399,2]
[393335525,1762487922776,-498.12404811,0.00017399,2]
[393335526,1762487922806,-315.62215542,0.00017399,2]
[393335527,1762487922832,-250.0,0.00017448,2]
[393335528,1762487922859,-300.0,0.00017448,2]
[393335529,1762487922886,-500.0,0.00017473,2]
[393335530,1762487922912,-448.86793158,0.00017473,2]
[393335531,1762487925949,-11.74562274,0.00017473,2]
[393335532,1762487925985,-500.0,0.00017473,2]
[393335533,1762487926022,-500.0,0.00017473,2]
[393335534,1762487926055,-501.17210201,0.00017473,2]
[393335535,1762487926093,-500.0,0.00017473,2]
[393335536,1762487926126,-500.0,0.00017473,2]
[393335537,1762487926161,-500.0,0.00017473,2]
[393335538,1762487926194,-500.0,0.00017473,2]
[393335539,1762487926234,-260.92709679,0.00017488,2]
[393335540,1762487926272,-151.0,0.00017488,2]
[393335541,1762487926308,-151.0,0.00017488,2]
[393335542,1762487926345,-151.0,0.00017488,2]
[393335543,1762487926378,-151.0,0.00017488,2]
[393335544,1762487926413,-151.0,0.00017488,2]
[393335545,1762487926446,-151.0,0.00017488,2]
[393335546,1762487926476,-151.0,0.00017488,2]
[393335547,1762487926509,-151.0,0.00017488,2]
[393335548,1762487931792,-151.0,0.00017488,2]
[393335549,1762487931821,-151.0,0.00017488,2]
[393335550,1762487931850,-151.0,0.00017488,2]
[393335551,1762487931878,-151.0,0.00017488,2]
[393335552,1762487931908,-151.0,0.00017488,2]
[393335553,1762487931935,-151.0,0.00017488,2]
[393335554,1762487931963,-151.0,0.00017488,2]
[393335555,1762487931991,-151.0,0.00017488,2]
[393335556,1762487932018,-151.0,0.00017488,2]
[393335557,1762487932044,-151.0,0.00017488,2]
[393335558,1762487932072,-151.0,0.00017488,2]
[393335559,1762487932099,-151.0,0.00017488,2]
[393335560,1762487932126,-250.0,0.00017493,2]
[393335561,1762487932153,-335.4709574,0.00017493,2]
[393335562,1762487932179,-550.0,0.00017497,2]
[393335563,1762487932206,-300.0,0.00017498,2]
[393335564,1762487932234,-1200.0,0.00017498,2]
[393335565,1762487932264,-500.0,0.00017498,2]
[393335566,1762488206794,1181.96015787,0.00038757,120]
[393335567,1762488229640,-250.0,0.00017,2]
[393335568,1762488229670,-312.0,0.00017,2]
[393335569,1762488229698,-250.0,0.00017236,2]
[393335570,1762488229726,-550.0,0.00017398,2]
[393335571,1762488229754,-500.0,0.00017399,2]
[393335573,1762488259796,-7850.66840106,0.00017399,2]
[393335574,1762488265776,-3053.48809092,0.00017399,2]
[393335575,1762488265814,-3893.03381816,0.00017399,2]
[393335576,1762488326012,1000.0,0.00038758,30]
[393335577,1762488354464,10105.02676443,0.00038758,120]
[393335578,1762488554815,500.0,0.00038758,120]
[393335579,1762488555052,500.0,0.00038758,120]
[393335580,1762488555286,500.0,0.00038758,120]
[393335581,1762488555556,500.0,0.00038758,120]
[393335582,1762488555807,500.0,0.00038758,120]
[393335583,1762488556047,500.0,0.00038758,120]
[393335584,1762488556617,500.0,0.00038758,120]
[393335585,1762488556862,500.0,0.00038758,120]
[393335586,1762488557098,500.0,0.00038758,120]
[393335587,1762488557342,500.0,0.00038758,120]
[393335588,1762488557595,500.0,0.00038758,120]
[393335589,1762488557809,500.0,0.00038758,120]
[393335590,1762488558042,500.0,0.00038758,120]
[393335591,1762488558279,500.0,0.00038758,120]
[393335592,1762488558542,500.0,0.00038758,120]
[393335593,1762488558782,154.0260704,0.00038758,120]
[393335594,1762488588152,500.0,0.00038758,30]
[393335595,1762488588733,500.0,0.00038758,30]
[393335596,1762488588990,500.0,0.00038758,30]
[393335597,1762488589282,386.09499652,0.00038758,30]
[393335600,1762488631560,-888.14621228,0.00017043,2]
[393335601,1762488631572,-60.54287972,0.00017043,2]
[393335602,1762488631581,-313.0,0.00017043,2]
[393335603,1762488631591,-300.0,0.00017059,2]
[393335604,1762488631600,-300.0,0.00017059,2]
[393335605,1762488631610,-1200.0,0.00017059,2]
[393335606,1762488631619,-1172.0116353,0.0001706,2]
[393335607,1762488631652,-575.75,0.0001706,2]
[393335608,1762488631663,-1895.5,0.0001706,2]